fUSD/lending_fUSD_20240606
["ID","MTS","AMOUNT","RATE_DAILY","PERIOD"]
[328642559,1717659056006,-150.0,0.000288,2]
[328642560,1717659056016,-150.0,0.00028804,2]
[328642561,1717659056026,-150.0,0.00028807,2]
[328642562,1717659056036,-150.0,0.00028812,2]
[328642563,1717659056046,-150.0,0.00028818,2]
[328642564,1717659056056,-150.0,0.00028831,2]
[328642565,1717659056066,-150.0,0.00028836,2]
[328642566,1717659056076,-150.0,0.00028876,2]
[328642567,1717659056086,-150.0,0.00028886,2]
[328642568,1717659056096,-150.0,0.00028891,2]
[328642569,1717659056106,-369.980668,0.00028892,7]
[328642570,1717659056115,-280.162191,0.00028892,7]
[328642571,1717659056124,-369.980668,0.00028892,7]
[328642572,1717659056134,-58067.21834636,0.00028892,13]
[328642573,1717659056146,-597.4,0.00028892,13]
[328642574,1717659056158,-13344.95298,0.00028892,13]
[328642575,1717659056171,-17532.88871309,0.00028892,13]
[328642576,1717659056183,-456670.77663041,0.00028892,13]
[328642577,1717659056192,-150.0,0.00028907,2]
[328642578,1717659056202,-150.0,0.0002891,2]
[328642579,1717659056212,-150.0,0.00028915,2]
[328642580,1717659056221,-150.0,0.00028942,2]
[328642581,1717659056232,-150.0,0.00028959,2]
[328642582,1717659056242,-150.0,0.00028964,2]
[328642583,1717659056252,-369.980668,0.0002897,7]
[328642584,1717659056263,-280.162191,0.0002897,7]
[328642585,1717659056272,-150.0,0.0002897,2]
[328642586,1717659056282,-369.980668,0.0002897,7]
[328642587,1717659056291,-369.980668,0.00029064,7]
[328642588,1717659056301,-280.162191,0.00029064,7]
[328642589,1717659056311,-4085.10822514,0.00029086,2]
[328642590,1717659056320,-384835.04223411,0.0002948,7]
[328642591,1717659056702,-322.80232306,0.00013199,2]
[328642592,1717659056712,-1056.779002,0.000187,2]
[328642593,1717659056722,-1471.0,0.00019892,2]
[328642594,1717659056731,-17032.45923056,0.00019892,2]
[328642595,1717659056745,-316.34615088,0.00019892,2]
[328642596,1717659056914,-7343.75361856,0.00019892,2]
[328642597,1717659056924,-1471.0,0.00022892,2]
[328642598,1717659056933,-195.52445785,0.00023013,2]
[328642599,1717659056943,-436.14696845,0.00024798,7]
[328642600,1717659056955,-185.18374155,0.00024798,7]
[328642601,1717659056964,-621.33071,0.00024798,7]
[328642602,1717659056973,-621.33071,0.00025,7]
[328642603,1717659056983,-621.33071,0.00025,7]
[328642604,1717659056993,-350.18923497,0.00025892,2]
[328642605,1717659057006,-1120.81076503,0.00025892,2]
[328642606,1717659057015,-617.0,0.00027,2]
[328642607,1717659057026,-621.33071,0.00027,7]
[328642608,1717659057035,-150.0,0.00027,2]
[328642609,1717659057045,-200.22,0.00027397,10]
[328642610,1717659057055,-621.33071,0.00028026,7]
[328642611,1717659057064,-621.33071,0.00028892,7]
[328642612,1717659057074,-668.561,0.00028892,2]
[328642613,1717659057083,-621.33071,0.0002897,7]
[328642614,1717659057092,-369.980668,0.00029064,7]
[328642615,1717659057102,-372.26270315,0.00029064,7]
[328642616,1717659057114,-249.06800685,0.00029064,7]
[328642617,1717659057124,-1235.24672351,0.00029086,2]
[328642618,1717659057133,-540.48420703,0.0002948,7]
[328642619,1717659057286,-785.60612451,0.00013899,2]
[328642620,1717659057296,-425.84706977,0.00013899,2]
[328642621,1717659057329,-126.21533362,0.00013899,2]
[328642622,1717659057339,-177.62568872,0.00013899,2]
[328642624,1717659106625,397.4737,0.0001014,2]
[328642628,1717659126008,151.0,0.0002552,120]
[328642633,1717659271264,-300.0,0.00031675,120]
[328643083,1717659770949,168.0,0.00011099,2]
[328643807,1717659884454,200.0,0.00011044,2]
[328643808,1717659908857,4755.14039967,0.00011099,2]
[328643809,1717659928668,660.64,0.00010692,2]
[328643810,1717660033692,2500.0,0.000137,5]
[328643811,1717660035865,3200.0,0.000138,5]
[328643812,1717660039316,600.0,0.000139,5]
[328643813,1717660042106,-263.66693383,0.00012017,2]
[328643814,1717660042126,-162.52861424,0.00012017,2]
[328643815,1717660042147,-155.0,0.00012018,2]
[328643816,1717660042167,-156.59568569,0.00012018,2]
[328643817,1717660042187,-155.0,0.00012018,2]
[328643818,1717660042215,-4611.97868944,0.00012018,2]
[328643819,1717660042239,-1000.0,0.00012019,2]
[328643820,1717660042259,-205.53087797,0.00012019,2]
[328643821,1717660042281,-338.17759936,0.00012019,2]
[328643822,1717660042301,-429.53862842,0.0001202,2]
[328643823,1717660042321,-407.3473408,0.0001202,2]
[328643824,1717660042344,-10532.44542063,0.00012022,2]
[328643825,1717660042366,-7536.21807196,0.00012023,2]
[328643826,1717660042387,-150.0,0.00012027,2]
[328643827,1717660042407,-150.0,0.00012061,2]
[328643828,1717660042429,-150.0,0.00012061,2]
[328643829,1717660042449,-172.23,0.0001209,2]
[328643830,1717660042469,-7091.9800207,0.0001209,2]
[328643831,1717660046195,-151.0,0.00026062,30]
[328643832,1717660160423,172.23,0.00010154,2]
[328643853,1717660232166,-941.12648657,0.00012088,2]
[328643854,1717660232176,-150.0,0.00012089,2]
[328643856,1717660232185,-150.0,0.00012089,2]
[328643858,1717660232195,-723.3399793,0.0001209,2]
[328643860,1717660232205,-967.09,0.0001209,2]
[328643862,1717660232215,-4833.56,0.0001209,2]
[328643863,1717660232224,-2236.42,0.00012312,2]
[328643865,1717660232234,-10970.15287954,0.000124,2]
[328643867,1717660232243,-452.96950587,0.00012458,2]
[328643868,1717660232252,-6486.8472793,0.00012502,2]
[328643869,1717660232262,-419.2,0.00012502,2]
[328643870,1717660232271,-16142.9989,0.00012512,2]
[328643871,1717660232282,-318.4692,0.00012513,2]
[328643872,1717660232291,-47596.8666,0.00012513,2]
[328643874,1717660232301,-2008.0948,0.00012513,2]
[328643876,1717660232310,-519.7374,0.00012513,2]
[328643877,1717660232320,-1000.0,0.00012513,2]
[328643878,1717660232329,-21504.3839,0.00012513,2]
[328643879,1717660232343,-162.9414,0.00012513,2]
[328643880,1717660232358,-291.0031,0.00012513,2]
[328643881,1717660232373,-201.9516,0.00012513,2]
[328643882,1717660232385,-199434.5513,0.00012613,2]
[328643883,1717660232398,-499.99,0.00012613,2]
[328643884,1717660232411,-999.99,0.00012613,2]
[328643885,1717660232424,-1000.0,0.0001276,2]
[328643886,1717660232439,-162.52861424,0.00012761,2]
[328643887,1717660232453,-250.0,0.00012762,2]
[328643888,1717660232465,-4611.97868944,0.00012955,2]
[328643889,1717660232481,-660.64,0.00012956,2]
[328643890,1717660232495,-210.0,0.00013298,2]
[328643891,1717660232509,-1298.78853938,0.00013298,2]
[328643892,1717660232521,-600.0,0.000134,4]
[328643893,1717660232535,-1200.0,0.000135,4]
[328643894,1717660232547,-172.83,0.00013547,2]
[328643895,1717660232560,-1900.0,0.000136,4]
[328643896,1717660232575,-23900.0,0.00013707,2]
[328643897,1717660232587,-200.0,0.00013874,2]
[328643898,1717660232600,-524.82676745,0.00013898,2]
[328643901,1717660232611,-586.5363,0.00013898,2]
[328643902,1717660232621,-481.69023234,0.00013899,2]
[328643905,1717660232634,-172.93807591,0.000139,2]
[328643907,1717660232646,-752.43574606,0.000139,2]
[328643910,1717660232659,-198.90654413,0.000139,2]
[328643912,1717660232672,-1600.8955308,0.000139,2]
[328643914,1717660232683,-323.49284845,0.000139,2]
[328643915,1717660232698,-275.73866942,0.000139,2]
[328643916,1717660232712,-1056.779002,0.000139,2]
[328643917,1717660232725,-194.6313974,0.000139,2]
[328643918,1717660232735,-2391.08875975,0.000139,2]
[328643919,1717660232746,-261.23787219,0.0001399,2]
[328643920,1717660232757,-261.23787219,0.0001399,2]
[328643921,1717660232768,-261.23787219,0.0001399,2]
[328643922,1717660232782,-151.91,0.0001399,2]
[328643923,1717660232795,-151.91,0.0001399,2]
[328643924,1717660232806,-151.91,0.0001399,2]
[328643925,1717660232817,-151.91,0.0001399,2]
[328643926,1717660232828,-151.91,0.0001399,2]
[328643927,1717660232841,-151.91,0.0001399,2]
[328643928,1717660232854,-151.91,0.0001399,2]
[328643929,1717660232865,-151.91,0.0001399,2]
[328643930,1717660232876,-151.91,0.0001399,2]
[328643931,1717660232886,-151.91,0.0001399,2]
[328643932,1717660232898,-151.91,0.0001399,2]
[328643933,1717660232909,-625.17462304,0.00013998,2]
[328643934,1717660232922,-185.82854866,0.00013998,2]
[328643935,1717660232934,-545.13448433,0.00013998,2]
[328643936,1717660232946,-1389.72657896,0.00013998,2]
[328643937,1717660232958,-447.95488763,0.00013998,2]
[328643938,1717660232969,-3184.01,0.00013998,2]
[328643939,1717660232981,-2367.97259469,0.00013998,2]
[328643940,1717660232993,-410.81529252,0.00013998,2]
[328643941,1717660233004,-2191.87131538,0.00013998,2]
[328643942,1717660233016,-300.31819455,0.00013998,2]
[328643943,1717660233029,-165.83457501,0.00013998,2]
[328643944,1717660233040,-156.25169477,0.00013998,2]
[328643945,1717660233053,-155.0,0.00013998,2]
[328643946,1717660233064,-158.30150907,0.00013998,2]
[328643947,1717660233075,-2819.00314972,0.00013998,2]
[328643948,1717660233085,-155.17384802,0.00013998,2]
[328643949,1717660233097,-711.64219338,0.00013998,2]
[328643950,1717660233108,-198.15323781,0.00013998,2]
[328643951,1717660233119,-187.56733128,0.00013998,2]
[328643952,1717660233132,-268.39225568,0.00013998,2]
[328643953,1717660233143,-158.63345254,0.00013998,2]
[328643954,1717660233155,-156.84962146,0.00013998,2]
[328643955,1717660233166,-855.65609833,0.00013998,2]
[328643956,1717660233178,-307.06708735,0.00013998,2]
[328643957,1717660233189,-236.48275903,0.00013998,2]
[328643958,1717660233200,-290.60436732,0.00013998,2]
[328643959,1717660233212,-207.15407222,0.00013998,2]
[328643960,1717660233223,-538.45112809,0.00013998,2]
[328643961,1717660233234,-9160.58674953,0.00013998,2]
[328643962,1717660233246,-289.94072296,0.00013998,2]
[328643963,1717660233257,-155.0,0.00013998,2]
[328643964,1717660233269,-338.36733149,0.00013998,2]
[328643965,1717660233283,-7386.80010078,0.00013998,2]
[328643966,1717660233294,-546.7610585,0.00013998,2]
[328643967,1717660233306,-1336.4387747,0.00013999,2]
[328643968,1717660233317,-29739.52767735,0.00013999,2]
[328643969,1717660233328,-1563693.57901993,0.00014,2]
[328643970,1717660233412,-15059.76803269,0.00014,2]
[328643985,1717660238319,-1503.38489466,0.000129,2]
[328643986,1717660238328,-13493.00547045,0.00014,2]
[328643987,1717660238339,-27584.70700085,0.00014,2]
[328643988,1717660238504,-0.00606691,0.00014,2]
[328643989,1717660238519,-848311.19347566,0.00014,2]
[328643996,1717660240824,-2654.72704819,0.00014,2]
[328643997,1717660241075,-41722.70664056,0.00014,2]
[328643998,1717660241091,-356.19588052,0.00014,2]
[328643999,1717660241175,-892.19844599,0.00014,2]
[328644000,1717660241841,-520.19410349,0.00014,2]
[328644001,1717660241910,-552.33090042,0.00014,2]
[328644002,1717660241922,-1509.61701147,0.00014,2]
[328644003,1717660241934,-3646.47215078,0.00014,2]
[328644018,1717660243352,-7246.10300435,0.00014,2]
[328644021,1717660243568,-2438.85574217,0.00014,2]
[328644022,1717660243579,-3041.00171297,0.00014,2]
[328644023,1717660243676,-1625008.74928757,0.00014,2]
[328644024,1717660243687,-89652.7802426,0.00014,2]
[328644039,1717660246284,-835.2505,0.00012513,2]
[328644042,1717660246733,-3e-08,0.00012513,2]
[328644043,1717660246745,-854.63462459,0.00012513,2]
[328644044,1717660246756,-354.945,0.00012513,2]
[328644045,1717660345238,1529.4749,0.00011988,2]
[328644046,1717660350181,-2611.20547856,0.00012263,2]
[328644047,1717660350203,-73229.79452144,0.00012513,2]
[328644053,1717660699228,8396.94828267,0.00011939,2]
[328644054,1717660704924,677.947979,0.00011979,2]
[328644055,1717660738820,623.3,0.00011824,2]
[328644059,1717660899660,1273.62,0.00012513,4]
[328644061,1717661076294,152.55,9.728e-05,2]
[328644062,1717661226132,-210.14590383,0.00012086,2]
[328644063,1717661339756,250.0,0.00011959,2]
[328644064,1717661352112,-518.18572659,0.00012006,2]
[328644065,1717661352132,-162.52861424,0.00012007,2]
[328644066,1717661352154,-3177.82271134,0.00012008,2]
[328644067,1717661352174,-461.52530704,0.00012009,2]
[328644068,1717661360324,592.13,0.00010102,2]
[328644069,1717661366120,-787.93469296,0.00012009,2]
[328644070,1717661366143,-547.98920137,0.00012073,2]
[328644078,1717661374264,173.58658896,0.00011973,2]
[328644079,1717661393824,164.30466413,0.00011987,2]
[328644089,1717661415027,430.47069148,0.00011987,2]
[328644090,1717661421826,250.0,0.00011977,2]
[328644094,1717661432379,-173.58658895,0.0001206,2]
[328644095,1717661432389,-1834.0,0.00012072,2]
[328644096,1717661432399,-1347.26079863,0.00012073,2]
[328644097,1717661432408,-1091.66738669,0.00012099,2]
[328644098,1717661432418,-150.0,0.000121,2]
[328644099,1717661432427,-150.0,0.000121,2]
[328644100,1717661432438,-394.74360172,0.00012107,2]
[328644101,1717661432447,-200.52070043,0.00012107,2]
[328644102,1717661432457,-170.18020903,0.00012107,2]
[328644103,1717661432466,-416.59,0.00012108,2]
[328644104,1717661432476,-23900.0,0.00012108,2]
[328644105,1717661432486,-191.27,0.0001216,2]
[328644106,1717661432495,-150.99,0.0001216,2]
[328644107,1717661432504,-150.99,0.0001216,2]
[328644108,1717661432514,-224.99,0.00012162,2]
[328644109,1717661432523,-2806.972,0.00012163,2]
[328644110,1717661432533,-2611.20547856,0.00012263,2]
[328644111,1717661432542,-177.78,0.00012263,2]
[328644112,1717661432552,-592.13,0.00012366,2]
[328644113,1717661432561,-452.96950587,0.00012458,2]
[328644114,1717661432571,-1384.11,0.00012458,2]
[328644115,1717661432583,-1627.39982071,0.00012512,2]
[328644116,1717661432593,-3986.89515394,0.00012513,2]
[328644117,1717661432603,-500.0,0.00012513,2]
[328644118,1717661432613,-57412.33895206,0.00012513,2]
[328644119,1717661432622,-161.04,0.00012541,2]
[328644120,1717661432631,-161.04,0.00012551,2]
[328644121,1717661432641,-161.04,0.00012562,2]
[328644122,1717661432650,-161.04,0.00012572,2]
[328644123,1717661432659,-161.04,0.00012583,2]
[328644124,1717661432669,-161.04,0.00012593,2]
[328644125,1717661432678,-161.04,0.00012603,2]
[328644126,1717661432687,-1000.0,0.00012739,2]
[328644127,1717661432696,-7994.86,0.00012839,2]
[328644128,1717661432706,-500.0,0.00012921,2]
[328644129,1717661432716,-2059.36,0.00013011,2]
[328644130,1717661432726,-3153.91,0.00013104,2]
[328644131,1717661432735,-294.53,0.00013199,2]
[328644132,1717661432745,-210.0,0.0001331,2]
[328644133,1717661432754,-217.72,0.00013699,2]
[328644134,1717661432765,-297.18,0.00013699,2]
[328644135,1717661432777,-3617.28,0.00013763,2]
[328644136,1717661432786,-999.99,0.00013763,2]
[328644137,1717661432796,-381.52428489,0.00013765,2]
[328644139,1717661432806,-705.4557,0.000138,2]
[328644141,1717661432815,-2500.0,0.000138,2]
[328644142,1717661432825,-628.80425464,0.00013898,2]
[328644143,1717661432835,-155.97258321,0.00013898,2]
[328644144,1717661432847,-8331.7401,0.000139,2]
[328644145,1717661432856,-100000.0,0.000139,2]
[328644148,1717661432865,-752.43574606,0.000139,2]
[328644151,1717661432875,-200.86900762,0.000139,2]
[328644154,1717661432884,-1362.28298497,0.000139,2]
[328644157,1717661432893,-179.98978856,0.00013969,2]
[328644160,1717661432902,-165.17737501,0.0001399,2]
[328644163,1717661432911,-151.96,0.0001399,2]
[328644166,1717661432920,-7534.86291177,0.00013998,2]
[328644169,1717661432929,-5578.50640192,0.00013999,2]
[328644171,1717661432939,-8415.28893931,0.00013999,2]
[328644173,1717661432948,-193456.2757697,0.00014,2]
[328644175,1717661432956,-647886.13552514,0.00014,2]
[328644181,1717661433002,-445.48828911,0.00014,2]
[328644185,1717661433030,-17758.75,0.00014,2]
[328644188,1717661433042,-565.96,0.00014,2]
[328644190,1717661433053,-106500.0,0.00014,2]
[328644192,1717661433064,-24399.67256299,0.00014,2]
[328644196,1717661433091,-716.59388063,0.00014,2]
[328644198,1717661433102,-2657.0803135,0.00014,2]
[328644200,1717661433113,-2025.59405055,0.00014,2]
[328644202,1717661433124,-2796.90567683,0.00014,2]
[328644205,1717661433136,-508.04214824,0.00014,2]
[328644215,1717661438351,-1478.26174416,0.00014,2]
[328644216,1717661438364,-3475.13309198,0.00014,2]
[328644217,1717661438375,-515630.11975173,0.00014,2]
[328644218,1717661438385,-3000.0,0.00014,2]
[328644219,1717661438395,-499.99,0.00014069,2]
[328644220,1717661438406,-10777.30472808,0.00014169,2]
[328644221,1717661438415,-1000.0,0.00014331,2]
[328644222,1717661438426,-217.72,0.00014384,2]
[328644223,1717661438435,-592.13,0.0001463,2]
[328644224,1717661438445,-620.741956,0.00015,2]
[328644225,1717661438455,-200.0,0.00015,2]
[328644226,1717661438465,-155.37580712,0.00015,2]
[328644227,1717661438476,-155.4878975,0.00015,2]
[328644228,1717661438486,-165.17737501,0.0001503,2]
[328644229,1717661438495,-3000.0,0.0001504,2]
[328644230,1717661438505,-217.72,0.00015068,2]
[328644231,1717661438514,-10777.30472806,0.00015599,2]
[328644232,1717661438524,-217.72,0.00015753,2]
[328644233,1717661438534,-1000.0,0.00015923,2]
[328644234,1717661438544,-1362.28298493,0.00016186,2]
[328644235,1717661438553,-3000.0,0.0001629,2]
[328644236,1717661438563,-217.72,0.00016438,2]
[328644237,1717661438573,-592.13,0.00016894,2]
[328644238,1717661438585,-10777.30472806,0.00017029,2]
[328644239,1717661438594,-767.0,0.000175,2]
[328644240,1717661438604,-2967.0,0.000175,2]
[328644241,1717661438613,-1000.0,0.00017516,2]
[328644242,1717661438623,-3000.0,0.0001754,2]
[328644243,1717661438633,-10777.30472806,0.00018459,2]
[328644244,1717661438642,-1362.28298493,0.00018471,2]
[328644245,1717661438652,-3000.0,0.0001879,2]
[328644246,1717661438661,-246.96,0.00018825,2]
[328644247,1717661438670,-515.0,0.0001906,2]
[328644248,1717661438680,-1000.0,0.00019108,2]
[328644249,1717661438689,-592.13,0.00019158,2]
[328644250,1717661438699,-261.13840404,0.00019178,2]
[328644251,1717661438709,-159.1355223,0.00019178,2]
[328644252,1717661438719,-297.18,0.00019178,2]
[328644253,1717661438728,-3891.02501567,0.000192,2]
[328644254,1717661438738,-291.068,0.00019649,2]
[328644255,1717661438748,-5778.0,0.00019649,2]
[328644256,1717661438758,-9170.759,0.00019649,2]
[328644258,1717661438770,-5151.0,0.00019649,2]
[328644260,1717661438780,-1470.0,0.00019649,2]
[328644263,1717661438790,-1109.0,0.00019649,2]
[328644267,1717661438937,-150.5,0.0001966,15]
[328644268,1717661438952,-154.807,0.0001984,2]
[328644269,1717661438962,-204.13,0.0001984,2]
[328644270,1717661438972,-390.629,0.0001984,2]
[328644271,1717661438981,-997.072,0.0001984,2]
[328644272,1717661438991,-619.984,0.0001984,2]
[328644273,1717661439000,-1650.884,0.0001984,2]
[328644274,1717661439010,-1830.0,0.0001984,2]
[328644275,1717661439020,-1267.0,0.0001984,2]
[328644276,1717661439030,-442.76,0.0001984,2]
[328644277,1717661439039,-150.0,0.0001984,2]
[328644278,1717661439049,-165.0,0.0001984,2]
[328644279,1717661439059,-2403.0,0.0001984,2]
[328644280,1717661439068,-446.0,0.0001984,2]
[328644281,1717661439079,-808.0,0.0001984,2]
[328644282,1717661439089,-150.0,0.0001984,2]
[328644283,1717661439099,-1304.0,0.0001984,2]
[328644284,1717661439109,-216.0,0.0001984,2]
[328644285,1717661439119,-3173.0,0.0001984,2]
[328644286,1717661439129,-255.194,0.0001984,2]
[328644287,1717661439139,-2129.678,0.0001984,2]
[328644288,1717661439149,-10777.30472806,0.00019889,2]
[328644289,1717661439159,-1899.83531472,0.0001989,2]
[328644290,1717661439169,-3016.07364784,0.00019891,2]
[328644291,1717661439179,-610.704464,0.0002,7]
[328644292,1717661439188,-1280.07294978,0.0002,2]
[328644293,1717661439198,-157.98355192,0.0002,4]
[328644294,1717661439208,-54532.55470086,0.0002,2]
[328644295,1717661439217,-3000.0,0.0002004,2]
[328644296,1717661439227,-226.60187199,0.000201,2]
[328644297,1717661439237,-1362.28298493,0.00020757,2]
[328644298,1717661439247,-322.83689826,0.00021011,2]
[328644299,1717661439257,-10777.30472806,0.00021319,2]
[328644300,1717661439267,-150.5,0.0002133,15]
[328644301,1717661439277,-1024.0,0.0002133,15]
[328644302,1717661439287,-150.5,0.0002134,15]
[328644303,1717661439296,-1024.0,0.0002134,15]
[328644304,1717661439306,-150.5,0.0002135,15]
[328644305,1717661439316,-1024.0,0.0002135,15]
[328644306,1717661439325,-592.13,0.00021422,2]
[328644307,1717661439336,-300.0,0.0002146,2]
[328644308,1717661439346,-300.0,0.00021742,2]
[328644309,1717661439355,-472.4,0.00021918,2]
[328644310,1717661439365,-250.0,0.00021918,2]
[328644311,1717661439375,-789.74447447,0.00022,2]
[328644312,1717661439385,-300.0,0.00022025,2]
[328644313,1717661439395,-300.0,0.00022307,2]
[328644314,1717661439404,-290.0,0.00022649,2]
[328644315,1717661439414,-3768.335,0.00022649,2]
[328644316,1717661439424,-5127.563,0.00022649,2]
[328644317,1717661439434,-10777.30472806,0.0002275,2]
[328644318,1717661439445,-322.83689826,0.00022789,2]
[328644319,1717661439455,-154.81,0.0002281,15]
[328644320,1717661439465,-150.5,0.0002282,15]
[328644321,1717661439475,-150.5,0.0002283,15]
[328644322,1717661439485,-615.0,0.0002284,2]
[328644323,1717661439496,-1649.0,0.0002284,2]
[328644324,1717661439505,-1830.0,0.0002284,2]
[328644325,1717661439514,-1267.0,0.0002284,2]
[328644326,1717661439525,-150.0,0.0002284,2]
[328644327,1717661439534,-165.0,0.0002284,2]
[328644328,1717661439544,-1282.571,0.0002284,2]
[328644329,1717661439554,-446.0,0.0002284,2]
[328644330,1717661439564,-808.0,0.0002284,2]
[328644331,1717661439573,-150.0,0.0002284,2]
[328644332,1717661439584,-1304.0,0.0002284,2]
[328644333,1717661439595,-216.0,0.0002284,2]
[328644334,1717661439604,-3173.0,0.0002284,2]
[328644335,1717661439613,-2123.0,0.0002284,2]
[328644336,1717661439623,-1362.28298493,0.00023043,2]
[328644337,1717661439632,-592.13,0.00023686,2]
[328644338,1717661439642,-79755.17793803,0.00024,3]
[328644339,1717661439877,-264.24,0.00024,3]
[328644340,1717661439907,-1994.87656404,0.00024,3]
[328644341,1717661439918,-27284.94492335,0.00024,3]
[328644342,1717661439930,-14560.0,0.00024,3]
[328644343,1717661439943,-17349.750773,0.00024,3]
[328644344,1717661439970,-9816.08066772,0.00024,3]
[328644345,1717661439982,-39394.62524154,0.00024,3]
[328644346,1717661439992,-10777.30472806,0.0002418,2]
[328644347,1717661440002,-180.0,0.0002423,2]
[328644348,1717661440011,-253.46,0.00024384,2]
[328644349,1717661440021,-167.2,0.00024384,2]
[328644350,1717661440030,-290.63,0.00024384,2]
[328644351,1717661440040,-158.86,0.00024384,2]
[328644352,1717661440049,-322.83689826,0.00024567,2]
[328644353,1717661440059,-224.76407532,0.00024798,2]
[328644354,1717661440068,-258.84359209,0.00024798,2]
[328644355,1717661440078,-3898.74668319,0.00024798,2]
[328644356,1717661440088,-3898.7466831,0.00024798,2]
[328644357,1717661440098,-3898.7466831,0.00024798,2]
[328644358,1717661440107,-3898.7466831,0.00024798,2]
[328644359,1717661440116,-3898.7466831,0.00024798,2]
[328644360,1717661440126,-1421.92088386,0.00024799,2]
[328644361,1717661440136,-1421.9208838,0.00024799,2]
[328644362,1717661440145,-1421.9208838,0.00024799,2]
[328644363,1717661440155,-1421.9208838,0.00024799,2]
[328644364,1717661440164,-1421.9208838,0.00024799,2]
[328644365,1717661440174,-1421.9208838,0.00024799,2]
[328644366,1717661440183,-1421.9208838,0.00024799,2]
[328644367,1717661440192,-151.96,0.0002489,2]
[328644368,1717661440202,-6792.60300481,0.000249,2]
[328644369,1717661440211,-2126.47280957,0.000249,2]
[328644370,1717661440220,-929.72635158,0.00025,2]
[328644371,1717661440230,-713.77198143,0.00025,2]
[328644372,1717661440239,-706.05483356,0.00025,2]
[328644373,1717661440249,-155.0,0.00025,2]
[328644374,1717661440258,-225.04645167,0.00025,2]
[328644375,1717661440268,-158.98454596,0.00025,2]
[328644376,1717661440277,-155.0,0.00025,2]
[328644377,1717661440287,-249.45247286,0.00025,2]
[328644378,1717661440296,-234.76270326,0.00025,2]
[328644379,1717661440307,-325.89141873,0.00025,2]
[328644380,1717661440317,-1250.0,0.00025,2]
[328644381,1717661440326,-4963.47,0.0002501,2]
[328644382,1717661440336,-1000.0,0.00025205,2]
[328644383,1717661440345,-1362.28298493,0.00025329,2]
[328644384,1717661440354,-200.85347,0.000254,2]
[328644385,1717661440363,-10777.30472806,0.0002561,2]
[328644386,1717661440372,-615.0,0.0002584,2]
[328644387,1717661440382,-1649.0,0.0002584,2]
[328644388,1717661440391,-1830.0,0.0002584,2]
[328644389,1717661440401,-1264.0,0.0002584,2]
[328644390,1717661440410,-318.508,0.0002584,2]
[328644391,1717661440420,-150.0,0.0002584,2]
[328644392,1717661440430,-849.48,0.0002584,2]
[328644393,1717661440439,-216.0,0.0002584,2]
[328644394,1717661440449,-3173.0,0.0002584,2]
[328644395,1717661440458,-2123.0,0.0002584,2]
[328644396,1717661440469,-163.26,0.0002589,2]
[328644397,1717661440478,-592.13,0.0002595,2]
[328644398,1717661440488,-500.0,0.00026062,2]
[328644399,1717661440497,-1046.53950054,0.00026062,2]
[328644400,1717661440507,-1203.16064025,0.00026062,2]
[328644401,1717661440516,-1042.16808619,0.00026062,2]
[328644402,1717661440526,-34966.97943608,0.00026062,2]
[328644403,1717661440536,-16938.2045612,0.00026304,2]
[328644404,1717661440546,-1421.9208838,0.00026322,2]
[328644405,1717661440556,-322.83689826,0.00026344,2]
[328644406,1717661440565,-2054.22929284,0.000266,2]
[328644407,1717661440576,-2668.90190579,0.00026703,2]
[328644408,1717661440587,-151.0,0.00026885,7]
[328644409,1717661440596,-4027.10358314,0.00027,2]
[328644410,1717661440606,-1300.0,0.00027,2]
[328644411,1717661440615,-10777.30472806,0.0002704,2]
[328644412,1717661440625,-2010.9153131,0.000272,2]